Cogmind - Beta 16 @@@ ROGUE MODE // 2025.12.11 @ 01:18:40 Player: Red Box Result: Destroyed by FO-8JZ(R) with Subdweller Laser Performance ------------- Evolutions (0) 0 Regions Visited (3) 600 Robots Destroyed (29) 145 Value Destroyed (681) 681 Prototype IDs (0) 0 Alien Tech Used (0) 0 Bonus (60) 60 TOTAL SCORE: 1486 Bonus ------- Follower Combat Kills 60 Cogmind --------- Core Integrity 0/250 Matter 167/300 Energy 98/100 System Corruption 0% Temperature Cool (6) Movement Core (800) Ox15 Location -10/Subcaves Parts ------- > --- POWER (1) -------- (None) > --- PROPULSION (2) --- Wheel > --- UTILITY (2) ------ High-capacity Storage Unit > --- WEAPON (2) ------- Autogun Autogun > --- INVENTORY (20) --- Ion Engine Light Treads Wheel Compact Wheel Subdweller Monowheel Combat Airjet Improved Heat Sink High-capacity Matter Pod (200) Improved Terrain Scanner Targeting Computer Recalibrator Beamcaster Autogun Autogun Bore Cannon Rocket Launcher Rocket Launcher Mining Laser Peak State ------------ > --- POWER ------------ Ion Engine > --- PROPULSION ------- Light Treads Wheel > --- UTILITY ---------- High-capacity Storage Unit Weapon Shielding > --- WEAPON ----------- Heavy Assault Rifle Bore Cannon > --- INVENTORY -------- Ion Engine Light Treads Wheel Compact Wheel Subdweller Monowheel Combat Airjet Improved Heat Sink High-capacity Matter Pod Improved Terrain Scanner Targeting Computer Recalibrator Beamcaster Autogun Autogun Autogun Autogun Subdweller Machine Gun Rocket Launcher Rocket Launcher Mining Laser [Rating: 16] Favorites ----------- Power Ion Engine Engine Ion Engine Propulsion Aluminum Leg Treads Light Treads Leg Aluminum Leg Wheel Compact Wheel Utility Improved Terrain Scanner Device Improved Terrain Scanner Storage High-capacity Storage Unit Protection Weapon Shielding Weapon Heavy Assault Rifle Ballistic Gun Heavy Assault Rifle Ballistic Cannon Bore Cannon Launcher Rocket Launcher Special Weapon Mining Laser Special Melee Weapon Datajack Build | -11 -10 -10 -10 ------- Run | Yrd Mat Min Sub Slots Evolved . | . . . . Power . | . . . . Propulsion . | . . . . Utility . | . . . . Weapon . | . . . . Parts Attached 30 | 8 12 6 4 Power 4 | 1 1 2 . Engine 4 | 1 1 2 . Core . | . . . . Reactor . | . . . . Propulsion 6 | 2 2 2 . Treads 2 | . 1 1 . Leg 2 | 2 . . . Wheel 2 | . 1 1 . Hover . | . . . . Flight . | . . . . Utility 6 | 2 2 2 . Device 1 | 1 . . . Storage 3 | 1 2 . . Processor . | . . . . Hackware . | . . . . Protection 2 | . . 2 . Artifact . | . . . . Weapon 14 | 3 7 . 4 Energy Gun . | . . . . Energy Cannon . | . . . . Ballistic Gun 9 | 3 4 . 2 Ballistic Cannon 1 | . . . 1 Launcher 2 | . 2 . . Special Weapon 1 | . . . 1 Impact Weapon . | . . . . Slashing Weapon . | . . . . Piercing Weapon . | . . . . Special Melee Weapon 1 | . 1 . . Unidentified Prototypes . | . . . . Parts Lost 8 | . . 3 5 Power 1 | . . . 1 Propulsion 2 | . . 1 1 Utility 2 | . . 1 1 Weapon 3 | . . 1 2 Highest Loss Streak 5 | . . 3 5 To Critical Strikes . | . . . . Average Backups 14 | 4 11 19 19 Power 1 | . 1 1 1 Propulsion 4 | 2 4 4 5 Utility 2 | . . 4 5 Weapon 5 | 1 4 8 8 Tool/Special . | . . . . Unused Backups 17 | . 3 1 13 Power 1 | . . . 1 Propulsion 6 | . 1 . 5 Utility 6 | . 1 1 4 Weapon 4 | . 1 . 3 Tool/Special . | . . . . Average Slot Usage (%) 99 | . 99 99 92 Engine 13 | . 14 14 11 Treads 8 | . 5 14 12 Leg 9 | . 16 . . Wheel 9 | . 5 14 14 Device 8 | . 14 1 . Storage 14 | . 14 14 14 Protection 5 | . . 12 10 Ballistic Gun 24 | . 23 27 21 Launcher 1 | . 1 . . Special Melee Weapon 1 | . 2 . . Peak Build Rating 16 | 9 13 13 16 Average Rating 11 | 5 11 12 12 On Entrance 8 | . 9 13 13 Avg Prop Armor Cover (%) 11 | . 12 11 11 Naked Turns . | . . . . Heaviest Build 58 | 13 54 54 58 Greatest Support 20 | 20 20 20 10 Greatest Overweight (x) 17 | . 3 17 5 Average Overweight (x) 1 | . 1 3 4 Largest Inventory Capacity 20 | 8 20 20 20 Average Capacity 15 | 7 12 20 20 Most Carried 20 | 7 18 20 20 Average Carried 14 | 4 11 19 19 Final Capacity 20 | 8 20 20 20 Final Carried 20 | 7 18 20 18 Class Distribution -------------------- 98% | Mutant Dominant Class ---------------- Mutant | -10/Materials Mutant | -10/Mines Scavenger-Mutant | -10/Subcaves Resources | -11 -10 -10 -10 ----------- Run | Yrd Mat Min Sub Matter Collected 1528 | 304 726 498 . Remotely . | . . . . Salvage Created 985 | 103 494 346 42 Parts 53 | 9 31 10 3 Haulers Intercepted 1 | . 1 . . Recyclers Shooed 1 | 1 . . . Parts Field Recycled . | . . . . Retrieved Matter . | . . . . Parts Self-Destructed . | . . . . Prevented . | . . . . Parts Restored . | . . . . Kills | -11 -10 -10 -10 ------- Run | Yrd Mat Min Sub Combat Hostiles Destroyed 36 | . 15 20 1 Guns 27 | . 13 13 1 AOE 9 | . 2 7 . Classes Destroyed 9 | 2 5 2 . Worker 1 | . 1 . . Tunneler 3 | 2 . 1 . Hauler 1 | . 1 . . Recycler 1 | 1 . . . Mechanic 1 | . . 1 . Swarmer 7 | . 6 1 . Grunt 13 | . 8 5 . Subdweller 2 | . 1 . 1 Assembled 14 | . . 14 . Best Kill Streak 6 | 2 4 6 1 Combat Bots Only 6 | . 3 6 1 Max Kills in Single Turn 2 | 1 2 2 1 Gunslinging 1 | . 1 . . Exploded 2 | . 2 2 . Melee . | . . . . Uniques/NPCs Destroyed . | . . . . Combat | -11 -10 -10 -10 -------- Run | Yrd Mat Min Sub Hostile Shots Fired 146 | . 48 68 30 Missed 40 | . 11 23 6 Hits 106 | . 37 45 24 Melee 2 | . . 2 . Projectile 104 | . 37 43 24 AOE 3 | . . . 3 Critical Strikes 2 | . 1 1 . Actively Blocked 1 | . . 1 . Damage Taken 1932 | . 561 737 634 Core 255 | . 105 66 84 Absorbed by Shields . | . . . . Redirected to Shielding 52 | . . 32 20 Core Remaining (%) 100 | 100 . . . Volleys Fired 112 | 4 30 50 28 Largest 2 | 2 2 2 2 Hottest 100 | 40 66 56 100 Shots Fired 208 | 8 60 100 40 Gun 183 | 8 58 93 24 Cannon 3 | . . . 3 Launcher 9 | . 2 7 . Special 13 | . . . 13 Kinetic 186 | 8 58 93 27 Thermal 13 | . . . 13 Explosive 9 | . 2 7 . Electromagnetic . | . . . . Robot Hit Streak 14 | 6 8 14 9 Robot Miss Streak 4 | . 2 4 2 Penetration Max . | . . . . Secondary Targets 3 | . 2 1 . Max Gunslinging Chain 1 | . 1 1 . Shots Hit Robots 127 | 6 45 56 20 Core Hits 62 | 4 22 35 1 Critical Kills 1 | . 1 . . Critical Parts Destroyed . | . . . . Critical Strikes 1 | . 1 . . Destroy 1 | . 1 . . Melee Attacks 2 | . 2 . . Impact . | . . . . Slashing . | . . . . Piercing . | . . . . Sneak Attacks 2 | . 2 . . Combat Hostiles . | . . . . Follow-up Attacks . | . . . . Damage Inflicted 2692 | 87 854 1556 195 Guns 1729 | 87 628 819 195 Cannons . | . . . . Explosions 956 | . 223 733 . Melee . | . . . . Ramming 7 | . 3 4 . Kinetic 1729 | 87 628 819 195 Thermal 91 | . 91 . . Explosive 865 | . 132 733 . Electromagnetic . | . . . . Impact . | . . . . Slashing . | . . . . Piercing . | . . . . Highest Corruption . | . . . . Average Corruption . | . . . . Corruption Purged . | . . . . Corruption Blocked . | . . . . Overload Shots . | . . . . Overflow Damage 15 | . 15 . . Projectiles . | . . . . Explosions 15 | . 15 . . Melee . | . . . . Knockbacks . | . . . . Impact . | . . . . Kinetic . | . . . . Secondary . | . . . . Self-Inflicted Damage 171 | . 122 49 . Shots 3 | . 2 1 . Rammed 2 | . 1 1 . Targets Rammed 3 | . 2 1 . Kicked 1 | . 1 . . Crushed . | . . . . Highest Temperature 43 | . 9 43 . Average Temperature 9 | . 3 10 . Received Heat Transfer 354 | . 156 132 66 Siege Activations . | . . . . Martial Activations . | . . . . Shielding Activations . | . . . . Robots Disrupted . | . . . . Combat Hostiles . | . . . . Robots Corrupted . | . . . . Combat Hostiles . | . . . . Parts Fried . | . . . . Impact Corruptions . | . . . . Robots Melted . | . . . . Combat Hostiles . | . . . . Parts Melted . | . . . . Heat Transferred 50 | . 50 . . Parts Sabotaged . | . . . . Parts Stolen . | . . . . Parts Stripped . | . . . . Power Chain Reactions . | . . . . Alert | -11 -10 -10 -10 ------- Run | Yrd Mat Min Sub Maximum Alert Level . | . . . . Low Security (%) 100 | 100 100 100 . Level 1 . | . . . . Level 2 . | . . . . Level 3 . | . . . . Level 4 . | . . . . Level 5 . | . . . . High Security . | . . . . Max Security . | . . . . Peak Influence 174 | 5 161 174 . Initial 61 | . 3 61 . Average 32 | 1 24 47 . Influence Increases 769 | 15 516 238 . Destroy 0b10 Robot/C 440 | . 280 160 . Destroy 0b10 Robot/NC 35 | 15 10 10 . Destroy Leader 82 | . 62 20 . Allied During Kill 9 | . . 9 . Trap Triggered on 0b10 10 | . 10 . . Successful Hack 19 | . 19 . . Select Force Hacks 60 | . 60 . . Disable Machine 30 | . 30 . . Destroy Structure 84 | . 45 39 . Influence Decreases 769 | 10 362 359 38 Entered New Map 121 | . 2 98 21 Time Decay 628 | 10 360 241 17 Lost Part 10 | . . 10 . Lost Ally 10 | . . 10 . Squads Dispatched 6 | . 4 2 . Investigation 3 | . 3 . . Extermination . | . . . . Reinforcement 1 | . 1 . . Assault 2 | . . 2 . Garrison . | . . . . Intercept . | . . . . Searches Triggered . | . . . . Construction Impeded . | . . . . Haulers Reinforced . | . . . . Active Scanning Responses . | . . . . Cargo Convoy Interrupts . | . . . . Stealth | -11 -10 -10 -10 --------- Run | Yrd Mat Min Sub Distress Signals . | . . . . Communications Jammed . | . . . . Distress Signals . | . . . . Times Spotted 49 | . 17 28 4 Peak Tracking Total 4 | . 3 4 4 Tactical Retreats . | . . . . Traps | -11 -10 -10 -10 ------- Run | Yrd Mat Min Sub Traps Triggered . | . . . . Indirectly . | . . . . Trap Hack Attempts 29 | . 29 . . Triggered . | . . . . Disarmed . | . . . . Reprogrammed 2 | . 2 . . Reused 1 | . 1 . . Traps Extracted . | . . . . Installed . | . . . . Triggered 1 | . 1 . . Machines | -11 -10 -10 -10 ---------- Run | Yrd Mat Min Sub Machines Disabled 2 | . 2 . . Max in Single Turn 2 | . 2 . . Machines Repaired . | . . . . Machines Dismantled . | . . . . Machines Sabotaged . | . . . . Overloaded Fab Kills . | . . . . Hacking | -11 -10 -10 -10 --------- Run | Yrd Mat Min Sub Machines Accessed 8 | . 8 . . Terminals 6 | . 6 . . Fabricators . | . . . . Repair Stations . | . . . . Recycling Units 2 | . 2 . . Scanalyzers . | . . . . Garrison Access . | . . . . Total Hacks 35 | . 35 . . Successful 17 | . 17 . . Failed 18 | . 18 . . Catastrophic . | . . . . Database Lockouts . | . . . . Manual 29 | . 29 . . Terminals 29 | . 29 . . Fabricators . | . . . . Repair Stations . | . . . . Recycling Units 6 | . 6 . . Scanalyzers . | . . . . Garrison Access . | . . . . Terminal Hacks 5 | . 5 . . Robot Analysis 2 | . 2 . . Terminal Index 1 | . 1 . . Locate Traps 2 | . 2 . . Fabricator Hacks . | . . . . Repair Station Hacks . | . . . . Recycling Unit Hacks 1 | . 1 . . Retrieve Components 1 | . 1 . . Scanalyzer . | . . . . Garrison Access Hacks . | . . . . Unauthorized Hacks 11 | . 11 . . Terminals 9 | . 9 . . Assimilate 1 | . 1 . . Botnet 2 | . 2 . . Operators 1 | . 1 . . Skim 5 | . 5 . . Fabricators . | . . . . Repair Stations . | . . . . Recycling Units 2 | . 2 . . Tunnel 2 | . 2 . . Scanalyzers . | . . . . Garrison Access . | . . . . Data Cores Recovered . | . . . . Used . | . . . . Hacking Detections 8 | . 8 . . Full Trace Events 1 | . 1 . . Feedback Events . | . . . . Feedback Blocked . | . . . . Robot Schematics Acquired . | . . . . Robots Built . | . . . . Authchips . | . . . . Time . | . . . . Total Robot Build Rating . | . . . . Part Schematics Acquired . | . . . . Parts Built . | . . . . Authchips . | . . . . Time . | . . . . Total Part Build Rating . | . . . . Part Studies Acquired . | . . . . Parts Repaired . | . . . . Time . | . . . . Parts Recycled . | . . . . Recycled Matter . | . . . . Retrieved Matter . | . . . . Retrieved Components 5 | . 5 . . Parts Scanalyzed . | . . . . Part Schematics Acquired . | . . . . Parts Damaged . | . . . . Bothacking | -11 -10 -10 -10 ------------ Run | Yrd Mat Min Sub Used RIF Installer . | . . . . Robots Hacked 2 | . 2 . . Non-combat 2 | . 2 . . Combat . | . . . . Robot Hacks Applied 2 | . 2 . . parse_system 1 | . 1 . . no_distress 1 | . 1 . . Relay Couplers Released . | . . . . Fabnet Peak Effective % . | . . . . Robots Rewired . | . . . . Allies Hacked . | . . . . Hacks Repelled . | . . . . Allies | -11 -10 -10 -10 -------- Run | Yrd Mat Min Sub Total Allies 5 | . 1 4 . Largest Group 4 | . 1 4 4 Highest-Rated Group 71 | . 10 71 71 Highest-Rated Ally 31 | . 10 31 31 Total Orders 2 | . 1 1 . STAY 2 | . 1 1 . Ally Attacks 17 | . . 12 5 Total Damage 174 | . . 145 29 Kills 2 | . . 2 . Allies Corrupted . | . . . . Allies Melted . | . . . . Intel | -11 -10 -10 -10 ------- Run | Yrd Mat Min Sub Active Infowar (turns) 2442 | 4 2293 145 . Terrain 2442 | 4 2293 145 . Robot Analysis Total 2 | . 2 . . Derelict Logs Recovered 4 | . . 3 1 Drone Launches . | . . . . Drone Recoveries . | . . . . Exploration | -11 -10 -10 -10 ------------- Run | Yrd Mat Min Sub Turns Passed 3939 | 78 2293 1399 169 Spaces Moved 2086 | 43 1339 657 47 Core 9 | 4 . 5 . Treads 69 | . . 69 . Legs 781 | 39 742 . . Wheels 1227 | . 597 583 47 Hover . | . . . . Flight . | . . . . Fastest Speed 50 | 50 115 145 140 Average Speed 153 | 113 146 169 151 Slowest Speed 900 | 120 190 900 155 Overloaded Moves . | . . . . Propulsion Burnouts . | . . . . Robots Hopped . | . . . . Potential Cave-ins . | . . . . Cave-ins Triggered . | . . . . Exploration Rate (%) 51 | 5 98 97 5 Regions Visited 3 Branch Regions 2 Pre-discovered Areas 3 | . 2 1 . Known Exits Taken 1 | . . 1 . Unknown Exits Taken 2 | 1 1 . . Scrap Searched . | . . . . Spaces Dug . | . . . . Terrain Destroyed 106 | . 57 48 1 Melee . | . . . . Projectile 1 | . . . 1 AOE 105 | . 57 48 . Terrain Rammed . | . . . . Walls Destroyed . | . . . . Machines Disabled . | . . . . Actions | -11 -10 -10 -10 --------- Run | Yrd Mat Min Sub Total 2598 | 60 1609 846 83 Wait 274 | . 158 113 3 Move 2083 | 42 1338 656 47 Hop . | . . . . Pick Up 33 | 6 19 8 . Fast Attach 7 | 7 . . . Attach 8 | . 3 3 2 Detach . | . . . . Swap 29 | 1 15 10 3 Drop 18 | . 13 5 . Fire 112 | 4 30 50 28 Melee 2 | . 2 . . Ram . | . . . . Kick 1 | . 1 . . Crush 2 | . 1 1 . Escape Stasis . | . . . . Rewire . | . . . . Trap 29 | . 29 . . Miscellaneous . | . . . . Route ------- -11/Scrapyard -10/Materials (discovered 6 exits: *Mat x3 / [*Min x2] / Sub) -10/Mines (discovered 3 exits: *Mat x2 / *Sub) -10/Subcaves (discovered 3 exits: Mat x2 / Rec) History --------- Turn | Location | Event 7 | -11/Scrapyard | Discovered new exit (range 15) 79 | -11/Scrapyard | Entered Materials 237 | -10/Materials | Discovered new exit (range 4) 307 | -10/Materials | Build established: Mutant 441 | -10/Materials | Discovered new exit (range 7) 506 | -10/Materials | Discovered new exit (range 3) 579 | -10/Materials | Derelicts attacked the area 621 | -10/Materials | Discovered new exit (range 7) 1324 | -10/Materials | Discovered new exit (range 16) 1702 | -10/Materials | Learned 2 Storage zone layouts 1758 | -10/Materials | Learned 2 Mines zone layouts 1802 | -10/Materials | Learned 2 Mines zone layouts 1838 | -10/Materials | Learned location of 1 exit from Storage 1879 | -10/Materials | Identified exit to Subcaves 1937 | -10/Materials | Learned location of 3 exits from Materials 1978 | -10/Materials | Learned location of 2 exits from Subcaves 2372 | -10/Materials | Entered Mines 2372 | -10/Mines | Accompanied by 1 ally 2373 | -10/Mines | Assembled infested the area 2373 | -10/Mines | Identified exit to Materials 2378 | -10/Mines | Assisted by a Guerilla fighting off Assembled 2418 | -10/Mines | Met a Derelict bent on vengeance 2529 | -10/Mines | Core integrity fell below 50% 2603 | -10/Mines | Lost 3 parts (1n1u1w) 2718 | -10/Mines | Learned Materials emergency access door positions 3145 | -10/Mines | Met a Derelict testing a Signal Generator 3335 | -10/Mines | Assisted by bots powering up and referring to "LRC-V3" 3403 | -10/Mines | Found a Scrap Suit stashed away for nefarious purposes 3723 | -10/Mines | Discovered exit to Subcaves (range 7) 3771 | -10/Mines | Entered Subcaves 3771 | -10/Subcaves | Accompanied by 4 allies 3772 | -10/Subcaves | Approached by a straggling Scientist 3772 | -10/Subcaves | Identified exit to Materials 3772 | -10/Subcaves | Identified exit to Recycling 3773 | -10/Subcaves | Learned location of 1 exit from Materials 3902 | -10/Subcaves | Shifting Twisted Machinery released Sub. Power Source 3904 | -10/Subcaves | Shifting Twisted Machinery released Sub. Beam Cannon 3939 | -10/Subcaves | Core integrity fell below 20% 3940 | -10/Subcaves | Destroyed by FO-8JZ(R) with Subdweller Laser Last Messages --------------- 4H-Y88(c): "I think it's somewhere southwest of here" 03865_ PS-EV6(u) builds Twisted Machinery. 4H-Y88(c): "I think it's somewhere southwest of here" 03900_ HV Slug penetrates Wall. 03901_ Weapon Shielding destroyed. 03901_ Hvy. Assault Rifle destroyed. Sub. Power Source falls loose from the Twisted Machinery. Sub. Beam Cannon falls loose from the Twisted Machinery. 03910_ V4-8L8(R) destroyed. 03911_ Ion Engine destroyed. 03917_ Subatomizers dissect the Sub. Beam Cannon. 03920_ Sub. Machine Gun destroyed. 03927_ Lgt. Treads destroyed. 03927_ 4E-A2M(R) destroyed. 03931_ FO-8JZ(R) affixes Scrap Shield Fragment to Scrap Shield. Map ----- +----------------------------------------------------+ | ????????????????????????# ## #?????????????? | | ????????????????????????#### #?????????????? | | ??????????????????????????## #?????????????? | | ??????????????????????????# #?????????????? | | ??????????????????????????# #?????????????? | | ??????????????????????????# #?????????????? | | ??????????????????????????##### #?????????????? | | ??????????????????????????# #### #?????????????? | | ??????????????????????????# # # #?????????????? | | ?????????????????????????## "" #?????????????? | | ????????????????????????## " "" #?????????????? | | ????????????????????????# " "### ##?????????????? | | ????????????????????????# ##?#% #?????????????? | | ???????????????????????## ##??= ;#?????????????? | | ???????????????????????# #??# ;??????????????? | | ?????????????????????#### ;### #??????????????? | | ?????????????????????# ; ;;# #??????????????? | | ??????????????????####;;; g ##?????????????? | | ???????????????#### # ; g #?????????????? | | ???????????????? #?????????????? | | ???????????????????# ; #?????????????? | | ???????????????????#; c # ###?????????????? | | ???????????????????#; ;; #???????????????? | | ????????????????"""##";;; #???????????????? | | ????????????????#" " #???????????????? | | ?????????????????# R] @ #??????????????? | | ?????????????????###";;R ;#?????????????? | | ???????????????????###; ;; ####?????????????? | | ????????????????????"" "" ##????????????????? | | ??????????????????#""""" *""" "#?????????????????? | | ??????????????????""""""""##" #????????????????? | | ??????????????????"" "]####?" ???????????????? | | ??????????????????? " ?????" ??????????????? | | ??????????????????? ?"??????? #?????????????? | | ?????????????????????????????? #?????????????? | | ??????????????????????????????? #?????????????? | | ???????????????????????????????? ##?????????????? | | ?????????????????????????????????#???????????????? | | ?????????????????????????????????????????????????? | | ?????????????????????????????????????????????????? | | ?????????????????????????????????????????????????? | | ?????????????????????????????????????????????????? | | ?????????????????????????????????????????????????? | | ?????????????????????????????????????????????????? | | ?????????????????????????????????????????????????? | | ?????????????????????????????????????????????????? | | ?????????????????????????????????????????????????? | | ?????????????????????????????????????????????????? | | ?????????????????????????????????????????????????? | | ?????????????????????????????????????????????????? | +----------------------------------------------------+ Best States ------------- Heat Dissipation 25 Energy Generation 10 Energy Capacity 250 Matter Stores 300 Matter Capacity 300 Sight Range 16 Terrain Scan Range 16 Terrain Scan Density 10 Armor Coverage 150 Weapon Shielding 33 Evasion (%) 55 Recoil Reduction 1 Item Schematics ----------------- None Robot Schematics ------------------ None Fabricated ------------ Nothing Repaired ---------- Nothing Studied --------- None Alien Tech Used ----------------- None Achievements -------------- None Challenges ------------ None Game ------ Seed TargetImpulseMantle Manual? 0 Play Time 00:22:52 Cumulative 851.9 hours Start 2025.12.11 @ 00:41:42 End 2025.12.11 @ 01:18:40 Sessions 1 Manual Loads 0 Difficulty Rogue Special Mode None Game No. 546 Rogue 546 Adventurer 0 Explorer 0 Win Type - Total 1 Types 1/0/0/0/0/0/0/0/0/0 Lore% 78 Gallery% 72 Achievement% 52 Wizard Run 0 Options --------- Layout 1 ASCII 0 Keyboard 0 Movement Mouse Keybinds 0 Fullscreen 1 Font 20/SmallcapsGlow Map View 54x42 Zoom Use 0% Tactical HUD 1 Map Filters NONE Filters NONE Steam 1 RUN: fe277fa9-7b17-420e-af06-dc3ec3211a79